Workbook

Sheet Order
A1: =Helpboard!A1 -> Feltétek | B1: =Helpboard!B1 -> 32 cm-es | C1: =Helpboard!C1 -> 45 cm-es | D1: =Helpboard!D1 -> Eredeti Olasz | E1: =Helpboard!E1 -> Fitness
A2: =Helpboard!A2 -> Paradicsomszósz | B2: 1 | D2: 3
A3: =Helpboard!A3 -> Tejföl | E3: 2
A4: =Helpboard!A4 -> Barbecue-szósz | C4: 3
A5: =Helpboard!A5 -> Sajtkrém | B5: 2 | E5: 1
A6: =Helpboard!A6 -> Tárkonyos-Tejfölös Ragu
A7: =Helpboard!A7 -> Mustáros-Tejfölös Alap
A8: =Helpboard!A8 -> Erős-Tejföl
A9: =Helpboard!A9 -> Gyros-szósz | C9: 2
A10: =Helpboard!A10 -> Taco-szósz | D10: 3
A11: =Helpboard!A11 -> Bacon | E11: 3
A12: =Helpboard!A12 -> Pármai Sonka
A13: =Helpboard!A13 -> Szalámi | B13: 3
A14: =Helpboard!A14 -> Tonhal
A15: =Helpboard!A15 -> Csirkemell | D15: 3
A16: =Helpboard!A16 -> Kolbász | D16: 1
A17: =Helpboard!A17 -> Sonka | C17: 3
A18: =Helpboard!A18 -> Tarja | E18: 2
A19: =Helpboard!A19 -> Tenger Gyümölcsei
A20: =Helpboard!A20 -> Marhahús
A21: =Helpboard!A21 -> Virsli | B21: 4 | C21: 2
A22: =Helpboard!A22 -> Ananász | D22: 3
A23: =Helpboard!A23 -> Bab
A24: =Helpboard!A24 -> Brokkoli | E24: 3
A25: =Helpboard!A25 -> Gomba
A26: =Helpboard!A26 -> Jalapeno | B26: 1
A27: =Helpboard!A27 -> Kaliforniai Paprika | C27: 1 | D27: 3
A28: =Helpboard!A28 -> Koktélparadicsom | E28: 2
A29: =Helpboard!A29 -> Kukorica
A30: =Helpboard!A30 -> Lilahagyma | B30: 2
A31: =Helpboard!A31 -> Olivabogyó
A32: =Helpboard!A32 -> Paradicsom | C32: 2
A33: =Helpboard!A33 -> Póréhagyma | E33: 1
A34: =Helpboard!A34 -> Rukkola | D34: 2
A35: =Helpboard!A35 -> Pepperoni
A36: =Helpboard!A36 -> Zöldpaprika
A37: =Helpboard!A37 -> Uborka
A38: =Helpboard!A38 -> Vöröshagyma | B38: 2 | D38: 4 | E38: 1
A39: =Helpboard!A39 -> Mozzarella
A40: =Helpboard!A40 -> Parmesan | C40: 2 | E40: 1
A41: =Helpboard!A41 -> Márványsajt | D41: 1
A42: =Helpboard!A42 -> Füst. Mozzarella | B42: 1
A43: =Helpboard!A43 -> Fetasajt | C43: 1 | D43: 4 | E43: 1
A44: =Helpboard!A44 -> Sajttal Töltött | E44: 2
A45: =Helpboard!A45 -> Tortilla Chips | B45: 1 | C45: 1 | E45: 1
A46: =Helpboard!A46 -> Oregano | C46: 1 | E46: 1
A47: =Helpboard!A47 -> Chili | C47: 1
A49: Legjobb választás: | B49: =IF(Counting!$K$8=Counting!$G$8,Counting!G10,IF(Counting!$K$8=Counting!$H$8,Counting!H10,IF(Counting!$K$8=Counting!$I$8,Counting!I10,IF(Counting!$K$8=Counting!$J$8,Counting!J10,"")))) -> Paradicsomszósz | C49: =IF(Counting!$K$8=Counting!$G$8,Counting!G2,IF(Counting!$K$8=Counting!$H$8,Counting!H2,IF(Counting!$K$8=Counting!$I$8,Counting!I2,IF(Counting!$K$8=Counting!$J$8,Counting!J2,"")))) -> 1190
B50: =IF(Counting!$K$8=Counting!$G$8,Counting!G11,IF(Counting!$K$8=Counting!$H$8,Counting!H11,IF(Counting!$K$8=Counting!$I$8,Counting!I11,IF(Counting!$K$8=Counting!$J$8,Counting!J11,"")))) -> Szalámi | C50: =IF(Counting!$K$8=Counting!$G$8,Counting!G3,IF(Counting!$K$8=Counting!$H$8,Counting!H3,IF(Counting!$K$8=Counting!$I$8,Counting!I3,IF(Counting!$K$8=Counting!$J$8,Counting!J3,"")))) -> 450
B51: =IF(Counting!$K$8=Counting!$G$8,Counting!G12,IF(Counting!$K$8=Counting!$H$8,Counting!H12,IF(Counting!$K$8=Counting!$I$8,Counting!I12,IF(Counting!$K$8=Counting!$J$8,Counting!J12,"")))) -> Lilahagyma | C51: =IF(Counting!$K$8=Counting!$G$8,Counting!G4,IF(Counting!$K$8=Counting!$H$8,Counting!H4,IF(Counting!$K$8=Counting!$I$8,Counting!I4,IF(Counting!$K$8=Counting!$J$8,Counting!J4,"")))) -> 150
B52: =IF(Counting!$K$8=Counting!$G$8,Counting!G13,IF(Counting!$K$8=Counting!$H$8,Counting!H13,IF(Counting!$K$8=Counting!$I$8,Counting!I13,IF(Counting!$K$8=Counting!$J$8,Counting!J13,"")))) -> Mozzarella | C52: =IF(Counting!$K$8=Counting!$G$8,Counting!G5,IF(Counting!$K$8=Counting!$H$8,Counting!H5,IF(Counting!$K$8=Counting!$I$8,Counting!I5,IF(Counting!$K$8=Counting!$J$8,Counting!J5,"")))) -> 0
B53: =IF(Counting!$K$8=Counting!$G$8,Counting!G14,IF(Counting!$K$8=Counting!$H$8,Counting!H14,IF(Counting!$K$8=Counting!$I$8,Counting!I14,IF(Counting!$K$8=Counting!$J$8,Counting!J14,"")))) -> Tortilla Chips | C53: =IF(Counting!$K$8=Counting!$G$8,Counting!G6,IF(Counting!$K$8=Counting!$H$8,Counting!H6,IF(Counting!$K$8=Counting!$I$8,Counting!I6,IF(Counting!$K$8=Counting!$J$8,Counting!J6,"")))) -> 100
B54: =IF(Counting!$K$8=Counting!$G$8,Counting!G15,IF(Counting!$K$8=Counting!$H$8,Counting!H15,IF(Counting!$K$8=Counting!$I$8,Counting!I15,IF(Counting!$K$8=Counting!$J$8,Counting!J15,"")))) -> Oregano | C54: =IF(Counting!$K$8=Counting!$G$8,Counting!G7,IF(Counting!$K$8=Counting!$H$8,Counting!H7,IF(Counting!$K$8=Counting!$I$8,Counting!I7,IF(Counting!$K$8=Counting!$J$8,Counting!J7,"")))) -> 0
A55: Szumma: | B55: =IF(Counting!$K$8=Counting!$G$8,Counting!G1,IF(Counting!$K$8=Counting!$H$8,Counting!H1,IF(Counting!$K$8=Counting!$I$8,Counting!I1,IF(Counting!$K$8=Counting!$J$8,Counting!J2,"")))) -> 32 cm-es | C55: =SUM(C49:C54) -> 1890

Sheet Counting
A1: =Helpboard!A1 -> Feltétek | B1: =Helpboard!B1 -> 32 cm-es | C1: =Helpboard!C1 -> 45 cm-es | D1: =Helpboard!D1 -> Eredeti Olasz | E1: =Helpboard!E1 -> Fitness | G1: =B1 -> 32 cm-es | H1: =C1 -> 45 cm-es | I1: =D1 -> Eredeti Olasz | J1: =E1 -> Fitness
A2: =Helpboard!A2 -> Paradicsomszósz | B2: =Order!B2*Helpboard!B2 -> 1190 | C2: =Order!C2*Helpboard!C2 -> 0 | D2: =Order!D2*Helpboard!D2 -> 3645 | E2: =Order!E2*Helpboard!E2 -> 0 | F2: Alap | G2: =SMALL(B2:B10, 8) -> 1190 | H2: =SMALL(C2:C10, 8) -> 4480 | I2: =SMALL(D2:D10, 8) -> 3645 | J2: =SMALL(E2:E10, 8) -> 1390
A3: =Helpboard!A3 -> Tejföl | B3: =Order!B3*Helpboard!B3 -> 0 | C3: =Order!C3*Helpboard!C3 -> 0 | D3: =Order!D3*Helpboard!D3 -> 0 | E3: =Order!E3*Helpboard!E3 -> 2680 | F3: Hús | G3: =SMALL(B11:B21, 10) -> 450 | H3: =SMALL(C11:C21, 10) -> 500 | I3: =SMALL(D11:D21, 10) -> 150 | J3: =SMALL(E11:E21, 10) -> 450
A4: =Helpboard!A4 -> Barbecue-szósz | B4: =Order!B4*Helpboard!B4 -> 0 | C4: =Order!C4*Helpboard!C4 -> 6570 | D4: =Order!D4*Helpboard!D4 -> 0 | E4: =Order!E4*Helpboard!E4 -> 0 | F4: Zöldség | G4: =SMALL(B22:B38, 16) -> 150 | H4: =SMALL(C22:C38, 16) -> 125 | I4: =SMALL(D22:D38, 16) -> 300 | J4: =SMALL(E22:E38, 16) -> 250
A5: =Helpboard!A5 -> Sajtkrém | B5: =Order!B5*Helpboard!B5 -> 2480 | C5: =Order!C5*Helpboard!C5 -> 0 | D5: =Order!D5*Helpboard!D5 -> 0 | E5: =Order!E5*Helpboard!E5 -> 1390 | F5: Sajt | G5: =SMALL(B39:B44, 5) -> 0 | H5: =SMALL(C39:C44, 5) -> 100 | I5: =SMALL(D39:D44, 5) -> 100 | J5: =SMALL(E39:E44, 5) -> 75
A6: =Helpboard!A6 -> Tárkonyos-Tejfölös Ragu | B6: =Order!B6*Helpboard!B6 -> 0 | C6: =Order!C6*Helpboard!C6 -> 0 | D6: =Order!D6*Helpboard!D6 -> 0 | E6: =Order!E6*Helpboard!E6 -> 0 | F6: Extra | G6: =SMALL(B45:B45, 1) -> 100 | H6: =SMALL(C45:C45, 1) -> 250 | I6: =SMALL(D45:D45, 1) -> 0 | J6: =SMALL(E45:E45, 1) -> 100
A7: =Helpboard!A7 -> Mustáros-Tejfölös Alap | B7: =Order!B7*Helpboard!B7 -> 0 | C7: =Order!C7*Helpboard!C7 -> 0 | D7: =Order!D7*Helpboard!D7 -> 0 | E7: =Order!E7*Helpboard!E7 -> 0 | F7: Fűszer | G7: =SMALL(B46:B47, 1) -> 0 | H7: =SMALL(C46:C47, 1) -> 50 | I7: =SMALL(D46:D47, 1) -> 0 | J7: =SMALL(E46:E47, 1) -> 0 | K7: Legkisebb rendelés:
A8: =Helpboard!A8 -> Erős-Tejföl | B8: =Order!B8*Helpboard!B8 -> 0 | C8: =Order!C8*Helpboard!C8 -> 0 | D8: =Order!D8*Helpboard!D8 -> 0 | E8: =Order!E8*Helpboard!E8 -> 0 | F8: Szumma | G8: =SUM(G2:G7) -> 1890 | H8: =SUM(H2:H7) -> 5505 | I8: =SUM(I2:I7) -> 4195 | J8: =SUM(J2:J7) -> 2265 | K8: =MIN(G8:J8) -> 1890
A9: =Helpboard!A9 -> Gyros-szósz | B9: =Order!B9*Helpboard!B9 -> 0 | C9: =Order!C9*Helpboard!C9 -> 4480 | D9: =Order!D9*Helpboard!D9 -> 0 | E9: =Order!E9*Helpboard!E9 -> 0 | G9: =B1 -> 32 cm-es | H9: =C1 -> 45 cm-es | I9: =D1 -> Eredeti Olasz | J9: =E1 -> Fitness
A10: =Helpboard!A10 -> Taco-szósz | B10: =Order!B10*Helpboard!B10 -> 0 | C10: =Order!C10*Helpboard!C10 -> 0 | D10: =Order!D10*Helpboard!D10 -> 3795 | E10: =Order!E10*Helpboard!E10 -> 0 | F10: Alap | G10: =INDEX($A$2:$E$10,MATCH(G2,B2:B10,0),1) -> Paradicsomszósz | H10: =INDEX($A$2:$E$10,MATCH(H2,C2:C10,0),1) -> Gyros-szósz | I10: =INDEX($A$2:$E$10,MATCH(I2,D2:D10,0),1) -> Paradicsomszósz | J10: =INDEX($A$2:$E$10,MATCH(J2,E2:E10,0),1) -> Sajtkrém
A11: =Helpboard!A11 -> Bacon | B11: =Order!B11*Helpboard!B11 -> 0 | C11: =Order!C11*Helpboard!C11 -> 0 | D11: =Order!D11*Helpboard!D11 -> 0 | E11: =Order!E11*Helpboard!E11 -> 525 | F11: Hús | G11: =INDEX($A$11:$E$21,MATCH(G3,B11:B21,0),1) -> Szalámi | H11: =INDEX($A$11:$E$21,MATCH(H3,C11:C21,0),1) -> Virsli | I11: =INDEX($A$11:$E$21,MATCH(I3,D11:D21,0),1) -> Kolbász | J11: =INDEX($A$11:$E$21,MATCH(J3,E11:E21,0),1) -> Tarja
A12: =Helpboard!A12 -> Pármai Sonka | B12: =Order!B12*Helpboard!B12 -> 0 | C12: =Order!C12*Helpboard!C12 -> 0 | D12: =Order!D12*Helpboard!D12 -> 0 | E12: =Order!E12*Helpboard!E12 -> 0 | F12: Zöldség | G12: =INDEX($A$22:$E$38,MATCH(G4,B22:B38,0),1) -> Lilahagyma | H12: =INDEX($A$22:$E$38,MATCH(H4,C22:C38,0),1) -> Kaliforniai Paprika | I12: =INDEX($A$22:$E$38,MATCH(I4,D22:D38,0),1) -> Ananász | J12: =INDEX($A$22:$E$38,MATCH(J4,E22:E38,0),1) -> Koktélparadicsom
A13: =Helpboard!A13 -> Szalámi | B13: =Order!B13*Helpboard!B13 -> 450 | C13: =Order!C13*Helpboard!C13 -> 0 | D13: =Order!D13*Helpboard!D13 -> 0 | E13: =Order!E13*Helpboard!E13 -> 0 | F13: Sajt | G13: =INDEX($A$39:$E$44,MATCH(G5,B39:B44,0),1) -> Mozzarella | H13: =INDEX($A$39:$E$44,MATCH(H5,C39:C44,0),1) -> Fetasajt | I13: =INDEX($A$39:$E$44,MATCH(I5,D39:D44,0),1) -> Márványsajt | J13: =INDEX($A$39:$E$44,MATCH(J5,E39:E44,0),1) -> Parmesan
A14: =Helpboard!A14 -> Tonhal | B14: =Order!B14*Helpboard!B14 -> 0 | C14: =Order!C14*Helpboard!C14 -> 0 | D14: =Order!D14*Helpboard!D14 -> 0 | E14: =Order!E14*Helpboard!E14 -> 0 | F14: Extra | G14: =INDEX($A$45:$E$45,MATCH(G6,B45:B45,0),1) -> Tortilla Chips | H14: =INDEX($A$45:$E$45,MATCH(H6,C45:C45,0),1) -> Tortilla Chips | I14: =INDEX($A$45:$E$45,MATCH(I6,D45:D45,0),1) -> Tortilla Chips | J14: =INDEX($A$45:$E$45,MATCH(J6,E45:E45,0),1) -> Tortilla Chips
A15: =Helpboard!A15 -> Csirkemell | B15: =Order!B15*Helpboard!B15 -> 0 | C15: =Order!C15*Helpboard!C15 -> 0 | D15: =Order!D15*Helpboard!D15 -> 600 | E15: =Order!E15*Helpboard!E15 -> 0 | F15: Fűszer | G15: =INDEX($A$46:$E$47,MATCH(G7,B46:B47,0),1) -> Oregano | H15: =INDEX($A$46:$E$47,MATCH(H7,C46:C47,0),1) -> Oregano | I15: =INDEX($A$46:$E$47,MATCH(I7,D46:D47,0),1) -> Oregano | J15: =INDEX($A$46:$E$47,MATCH(J7,E46:E47,0),1) -> Chili
A16: =Helpboard!A16 -> Kolbász | B16: =Order!B16*Helpboard!B16 -> 0 | C16: =Order!C16*Helpboard!C16 -> 0 | D16: =Order!D16*Helpboard!D16 -> 150 | E16: =Order!E16*Helpboard!E16 -> 0
A17: =Helpboard!A17 -> Sonka | B17: =Order!B17*Helpboard!B17 -> 0 | C17: =Order!C17*Helpboard!C17 -> 750 | D17: =Order!D17*Helpboard!D17 -> 0 | E17: =Order!E17*Helpboard!E17 -> 0
A18: =Helpboard!A18 -> Tarja | B18: =Order!B18*Helpboard!B18 -> 0 | C18: =Order!C18*Helpboard!C18 -> 0 | D18: =Order!D18*Helpboard!D18 -> 0 | E18: =Order!E18*Helpboard!E18 -> 450
A19: =Helpboard!A19 -> Tenger Gyümölcsei | B19: =Order!B19*Helpboard!B19 -> 0 | C19: =Order!C19*Helpboard!C19 -> 0 | D19: =Order!D19*Helpboard!D19 -> 0 | E19: =Order!E19*Helpboard!E19 -> 0
A20: =Helpboard!A20 -> Marhahús | B20: =Order!B20*Helpboard!B20 -> 0 | C20: =Order!C20*Helpboard!C20 -> 0 | D20: =Order!D20*Helpboard!D20 -> 0 | E20: =Order!E20*Helpboard!E20 -> 0
A21: =Helpboard!A21 -> Virsli | B21: =Order!B21*Helpboard!B21 -> 600 | C21: =Order!C21*Helpboard!C21 -> 500 | D21: =Order!D21*Helpboard!D21 -> 0 | E21: =Order!E21*Helpboard!E21 -> 0
A22: =Helpboard!A22 -> Ananász | B22: =Order!B22*Helpboard!B22 -> 0 | C22: =Order!C22*Helpboard!C22 -> 0 | D22: =Order!D22*Helpboard!D22 -> 300 | E22: =Order!E22*Helpboard!E22 -> 0
A23: =Helpboard!A23 -> Bab | B23: =Order!B23*Helpboard!B23 -> 0 | C23: =Order!C23*Helpboard!C23 -> 0 | D23: =Order!D23*Helpboard!D23 -> 0 | E23: =Order!E23*Helpboard!E23 -> 0
A24: =Helpboard!A24 -> Brokkoli | B24: =Order!B24*Helpboard!B24 -> 0 | C24: =Order!C24*Helpboard!C24 -> 0 | D24: =Order!D24*Helpboard!D24 -> 0 | E24: =Order!E24*Helpboard!E24 -> 300
A25: =Helpboard!A25 -> Gomba | B25: =Order!B25*Helpboard!B25 -> 0 | C25: =Order!C25*Helpboard!C25 -> 0 | D25: =Order!D25*Helpboard!D25 -> 0 | E25: =Order!E25*Helpboard!E25 -> 0
A26: =Helpboard!A26 -> Jalapeno | B26: =Order!B26*Helpboard!B26 -> 50 | C26: =Order!C26*Helpboard!C26 -> 0 | D26: =Order!D26*Helpboard!D26 -> 0 | E26: =Order!E26*Helpboard!E26 -> 0
A27: =Helpboard!A27 -> Kaliforniai Paprika | B27: =Order!B27*Helpboard!B27 -> 0 | C27: =Order!C27*Helpboard!C27 -> 125 | D27: =Order!D27*Helpboard!D27 -> 225 | E27: =Order!E27*Helpboard!E27 -> 0
A28: =Helpboard!A28 -> Koktélparadicsom | B28: =Order!B28*Helpboard!B28 -> 0 | C28: =Order!C28*Helpboard!C28 -> 0 | D28: =Order!D28*Helpboard!D28 -> 0 | E28: =Order!E28*Helpboard!E28 -> 250
A29: =Helpboard!A29 -> Kukorica | B29: =Order!B29*Helpboard!B29 -> 0 | C29: =Order!C29*Helpboard!C29 -> 0 | D29: =Order!D29*Helpboard!D29 -> 0 | E29: =Order!E29*Helpboard!E29 -> 0
A30: =Helpboard!A30 -> Lilahagyma | B30: =Order!B30*Helpboard!B30 -> 150 | C30: =Order!C30*Helpboard!C30 -> 0 | D30: =Order!D30*Helpboard!D30 -> 0 | E30: =Order!E30*Helpboard!E30 -> 0
A31: =Helpboard!A31 -> Olivabogyó | B31: =Order!B31*Helpboard!B31 -> 0 | C31: =Order!C31*Helpboard!C31 -> 0 | D31: =Order!D31*Helpboard!D31 -> 0 | E31: =Order!E31*Helpboard!E31 -> 0
A32: =Helpboard!A32 -> Paradicsom | B32: =Order!B32*Helpboard!B32 -> 0 | C32: =Order!C32*Helpboard!C32 -> 250 | D32: =Order!D32*Helpboard!D32 -> 0 | E32: =Order!E32*Helpboard!E32 -> 0
A33: =Helpboard!A33 -> Póréhagyma | B33: =Order!B33*Helpboard!B33 -> 0 | C33: =Order!C33*Helpboard!C33 -> 0 | D33: =Order!D33*Helpboard!D33 -> 0 | E33: =Order!E33*Helpboard!E33 -> 100
A34: =Helpboard!A34 -> Rukkola | B34: =Order!B34*Helpboard!B34 -> 0 | C34: =Order!C34*Helpboard!C34 -> 0 | D34: =Order!D34*Helpboard!D34 -> 100 | E34: =Order!E34*Helpboard!E34 -> 0
A35: =Helpboard!A35 -> Pepperoni | B35: =Order!B35*Helpboard!B35 -> 0 | C35: =Order!C35*Helpboard!C35 -> 0 | D35: =Order!D35*Helpboard!D35 -> 0 | E35: =Order!E35*Helpboard!E35 -> 0
A36: =Helpboard!A36 -> Zöldpaprika | B36: =Order!B36*Helpboard!B36 -> 0 | C36: =Order!C36*Helpboard!C36 -> 0 | D36: =Order!D36*Helpboard!D36 -> 0 | E36: =Order!E36*Helpboard!E36 -> 0
A37: =Helpboard!A37 -> Uborka | B37: =Order!B37*Helpboard!B37 -> 0 | C37: =Order!C37*Helpboard!C37 -> 0 | D37: =Order!D37*Helpboard!D37 -> 0 | E37: =Order!E37*Helpboard!E37 -> 0
A38: =Helpboard!A38 -> Vöröshagyma | B38: =Order!B38*Helpboard!B38 -> 150 | C38: =Order!C38*Helpboard!C38 -> 0 | D38: =Order!D38*Helpboard!D38 -> 300 | E38: =Order!E38*Helpboard!E38 -> 100
A39: =Helpboard!A39 -> Mozzarella | B39: =Order!B39*Helpboard!B39 -> 0 | C39: =Order!C39*Helpboard!C39 -> 0 | D39: =Order!D39*Helpboard!D39 -> 0 | E39: =Order!E39*Helpboard!E39 -> 0
A40: =Helpboard!A40 -> Parmesan | B40: =Order!B40*Helpboard!B40 -> 0 | C40: =Order!C40*Helpboard!C40 -> 200 | D40: =Order!D40*Helpboard!D40 -> 0 | E40: =Order!E40*Helpboard!E40 -> 75
A41: =Helpboard!A41 -> Márványsajt | B41: =Order!B41*Helpboard!B41 -> 0 | C41: =Order!C41*Helpboard!C41 -> 0 | D41: =Order!D41*Helpboard!D41 -> 100 | E41: =Order!E41*Helpboard!E41 -> 0
A42: =Helpboard!A42 -> Füst. Mozzarella | B42: =Order!B42*Helpboard!B42 -> 25 | C42: =Order!C42*Helpboard!C42 -> 0 | D42: =Order!D42*Helpboard!D42 -> 0 | E42: =Order!E42*Helpboard!E42 -> 0
A43: =Helpboard!A43 -> Fetasajt | B43: =Order!B43*Helpboard!B43 -> 0 | C43: =Order!C43*Helpboard!C43 -> 100 | D43: =Order!D43*Helpboard!D43 -> 200 | E43: =Order!E43*Helpboard!E43 -> 75
A44: =Helpboard!A44 -> Sajttal Töltött | B44: =Order!B44*Helpboard!B44 -> 0 | C44: =Order!C44*Helpboard!C44 -> 0 | D44: =Order!D44*Helpboard!D44 -> 0 | E44: =Order!E44*Helpboard!E44 -> 500
A45: =Helpboard!A45 -> Tortilla Chips | B45: =Order!B45*Helpboard!B45 -> 100 | C45: =Order!C45*Helpboard!C45 -> 250 | D45: =Order!D45*Helpboard!D45 -> 0 | E45: =Order!E45*Helpboard!E45 -> 100
A46: =Helpboard!A46 -> Oregano | B46: =Order!B46*Helpboard!B46 -> 0 | C46: =Order!C46*Helpboard!C46 -> 50 | D46: =Order!D46*Helpboard!D46 -> 0 | E46: =Order!E46*Helpboard!E46 -> 25
A47: =Helpboard!A47 -> Chili | B47: =Order!B47*Helpboard!B47 -> 0 | C47: =Order!C47*Helpboard!C47 -> 50 | D47: =Order!D47*Helpboard!D47 -> 0 | E47: =Order!E47*Helpboard!E47 -> 0

Sheet Helpboard
A1: Feltétek | B1: 32 cm-es | C1: 45 cm-es | D1: Eredeti Olasz | E1: Fitness
A2: Paradicsomszósz | B2: 1190 | C2: 2190 | D2: 1215 | E2: 1340
A3: Tejföl | B3: 1190 | C3: 2190 | D3: 1215 | E3: 1340
A4: Barbecue-szósz | B4: 1190 | C4: 2190 | D4: 1215 | E4: 1340
A5: Sajtkrém | B5: 1240 | C5: 2240 | D5: 1265 | E5: 1390
A6: Tárkonyos-Tejfölös Ragu | B6: 1290 | C6: 2290 | D6: 1315 | E6: 1440
A7: Mustáros-Tejfölös Alap | B7: 1190 | C7: 2190 | D7: 1215 | E7: 1340
A8: Erős-Tejföl | B8: 1190 | C8: 2190 | D8: 1215 | E8: 1340
A9: Gyros-szósz | B9: 1240 | C9: 2240 | D9: 1265 | E9: 1390
A10: Taco-szósz | B10: 1240 | C10: 2240 | D10: 1265 | E10: 1390
A11: Bacon | B11: 150 | C11: 250 | D11: 150 | E11: 175
A12: Pármai Sonka | B12: 300 | C12: 400 | D12: 300 | E12: 325
A13: Szalámi | B13: 150 | C13: 250 | D13: 150 | E13: 175
A14: Tonhal | B14: 250 | C14: 350 | D14: 250 | E14: 275
A15: Csirkemell | B15: 200 | C15: 300 | D15: 200 | E15: 225
A16: Kolbász | B16: 150 | C16: 250 | D16: 150 | E16: 175
A17: Sonka | B17: 150 | C17: 250 | D17: 150 | E17: 175
A18: Tarja | B18: 200 | C18: 300 | D18: 200 | E18: 225
A19: Tenger Gyümölcsei | B19: 300 | C19: 400 | D19: 300 | E19: 325
A20: Marhahús | B20: 250 | C20: 350 | D20: 250 | E20: 275
A21: Virsli | B21: 150 | C21: 250 | D21: 150 | E21: 175
A22: Ananász | B22: 100 | C22: 150 | D22: 100 | E22: 125
A23: Bab | B23: 50 | C23: 100 | D23: 50 | E23: 75
A24: Brokkoli | B24: 75 | C24: 125 | D24: 75 | E24: 100
A25: Gomba | B25: 100 | C25: 150 | D25: 100 | E25: 125
A26: Jalapeno | B26: 50 | C26: 100 | D26: 50 | E26: 75
A27: Kaliforniai Paprika | B27: 75 | C27: 125 | D27: 75 | E27: 100
A28: Koktélparadicsom | B28: 100 | C28: 150 | D28: 100 | E28: 125
A29: Kukorica | B29: 50 | C29: 100 | D29: 50 | E29: 75
A30: Lilahagyma | B30: 75 | C30: 125 | D30: 75 | E30: 100
A31: Olivabogyó | B31: 100 | C31: 150 | D31: 100 | E31: 125
A32: Paradicsom | B32: 75 | C32: 125 | D32: 75 | E32: 100
A33: Póréhagyma | B33: 75 | C33: 125 | D33: 75 | E33: 100
A34: Rukkola | B34: 50 | C34: 100 | D34: 50 | E34: 75
A35: Pepperoni | B35: 50 | C35: 100 | D35: 50 | E35: 75
A36: Zöldpaprika | B36: 50 | C36: 100 | D36: 50 | E36: 75
A37: Uborka | B37: 75 | C37: 125 | D37: 75 | E37: 100
A38: Vöröshagyma | B38: 75 | C38: 125 | D38: 75 | E38: 100
A39: Mozzarella | B39: 0 | C39: 0 | D39: 0 | E39: 25
A40: Parmesan | B40: 50 | C40: 100 | D40: 50 | E40: 75
A41: Márványsajt | B41: 100 | C41: 150 | D41: 100 | E41: 125
A42: Füst. Mozzarella | B42: 25 | C42: 75 | D42: 25 | E42: 50
A43: Fetasajt | B43: 50 | C43: 100 | D43: 50 | E43: 75
A44: Sajttal Töltött | B44: 200 | C44: 350 | D44: 175 | E44: 250
A45: Tortilla Chips | B45: 100 | C45: 250 | D45: 100 | E45: 100
A46: Oregano | B46: 25 | C46: 50 | D46: 25 | E46: 25
A47: Chili | B47: 25 | C47: 50 | D47: 25 | E47: 25

Sheet info
A1: 1. Helpboard célja:
A3: Segíti a "Counting" munkalap számításait, illetve a "Counting" innen veszi azokat az információkat, amiket felhasznál az "Order" munkalap során.
A5: A "Helpboard"-ra egy 47x5 dimenziós mátrixban feltöltheto a "webshop", vagyis bármilyen jellegu tartalom egy ekkora méretu formátumban.
A7: 2. Counting célja:
A9: A "Helpboard" tartalma alapján elkészít egy összegzotáblázatot, illetve manuálisan elkészítve /egyelore/ egy eredménymellékletet (G9:J15).
A11: Az "Order" alapján kikalkulálja az összegzés alapján az adott eredményt, illetve visszajátsza ezt az "Order" felületére.
A13: 3. Order célja:
A15: Gyakorlatilag ez az a felület, amivel a felhasználó kommunikál, megadható mibol-mennyi termékre van igénye.
A17: Az igény alapján kalkulálható, mely igény a legjobb választás számára, ez által a legolcsóbb ár is megjelenésre kerül.
A19: 4. Macro célja:
A21: A makró teljes célja egy olyan minimalista, egyszerusített vásárlói felület létrehozása, ami az input adatok alapján kikalkulálja a "kosár" alapján, hogy mi a legolcsóbb választás a vásárlószámára.
A23: 5. Jövőkép:
A25: Következésképp, szükséges a jövoben az egyelore manuálisan bevitt adatok automatizálása, illetve a következo félév célja: Globalizálás.
A27: Globalizálás alatt; egy olyan formátum, vagy típus elkészítése amely szabadon mozgatható bármilyen számítógép között, az erre alkalmas minoségben. /akár felho, akár portable/
A29: Kritika: A jelenleg leginkább előnyösnek tűnő végeredmény nem más, mint n alternatíva közül a legolcsóbb fellelése. Ennek keresése azonban nem világos, hogy kinek (döntéshozó) milyen élethelyzetében releváns? Ha olcsón akar enni valaki, akkor fordítva gondolkodik, vagyis nem a megrendelő lapról indul el, hanem az ártáblázatból és kiválasztja a quasi azonos hasznosítású termékcsoportokból a legolcsóbbat - majd rendel annyit, amennyi kell... Más megfogalmazásban: az order oldal adatai nem hasznosulnak valósághűen! Nem lesz leszállítva a megrendelt ételmennyiség, hanem ki lesz jelölve valamiféle minimális verzió... De hányan maradnak éhesek pénzzel teli zsebbel? Vagy hányan esznek mást, mint szerettek volna?
A31: Cím: Csoportos pizza-rendelés bekerülési költségének minimalizálása
A32: Szerző: Hidvégi Attila
A33: Kiadvány: MIAÚ
A34: Sorozat MIAÚ Nr257 (2020. január)

Sheet specializacio
A1: Ez a feladat a KJE Gazdasági Informatika Specializációja keretében készült a félévente 4+4 tantárgyat átfogó képzés első szemesztere után.
A2: A publikus feladatok a MIAÚ Nr257 alatt találhatók: https://miau.my-x.hu/miau2009/index.php3?x=miau128&where[indexkod]=miau257
A3: A specializáció célja világos célcsoportok számára hasznosságot ígérő (automatizálás által is érintett) feladatok felismerése, megoldása – lehetőség szerint alternatív megoldások összehasonlításával, részletes minőségbiztosítási elvárásokkal való szembesülés és a szubjektivitás minimalizálása mellett. A specializáció keretében jegyet csak publikációra alkalmas önálló feladattal lehet szerezni. A publikációk a szakdolgozatokra/TDK-dolgozatokra való interdiszciplináris felkészülést is támogatják. A szöveges dokumentáció szoftver-specifikációk alapjaként is szolgálhat programozási gyakorló feladatok kiadásakor.
A5: (hozzáférés tekintetében korlátozott háttér-anyagok: https://miau.my-x.hu/miau/257/digeco/pizza)
A8: tovább
